[Event "November 21 Late 2023"]
[Site "https://www.chess.com"]
[Date "2023.11.21"]
[Round "7"]
[White "Xu, Yi"]
[Black "Leiva, Gianmarco"]
[Result "1-0"]
[Board "31"]
[TimeControl "180+1"]
[WhiteFideId "8605564"]
[BlackFideId "3804399"]
[WhiteElo "2460"]
[BlackElo "2335"]
[WhiteTeam "CHN"]
[BlackTeam "PER"]
[WhiteClock "0:00:37"]
[BlackClock "0:00:02"]

1. e4 {[%clk 0:02:59]}  g6 {[%clk 0:03:00]} 2. d4 {[%clk 0:02:59]}  Bg7 {[%clk 0:03:00]} 3. Nc3 {[%clk 0:02:58]}  d6 {[%clk 0:03:01]} 4. f4 {[%clk 0:02:58]}  a6 {[%clk 0:03:00]} 5. Nf3 {[%clk 0:02:57]}  b5 {[%clk 0:03:00]} 6. Bd3 {[%clk 0:02:55]}  Bb7 {[%clk 0:02:57]} 7. e5 {[%clk 0:02:54]}  Nh6 {[%clk 0:02:56]} 8. Qe2 {[%clk 0:02:50]}  O-O {[%clk 0:02:56]} 9. Be3 {[%clk 0:02:49]}  Nd7 {[%clk 0:02:54]} 10. O-O-O {[%clk 0:02:46]}  c5 {[%clk 0:02:50]} 11. dxc5 {[%clk 0:02:45]}  dxc5 {[%clk 0:02:45]} 12. Be4 {[%clk 0:02:37]}  Bxe4 {[%clk 0:02:45]} 13. Nxe4 {[%clk 0:02:36]}  Qc7 {[%clk 0:02:45]} 14. h4 {[%clk 0:02:31]}  Nf5 {[%clk 0:02:14]} 15. g4 {[%clk 0:02:16]}  Nxe3 {[%clk 0:02:02]} 16. Qxe3 {[%clk 0:02:17]}  Nb6 {[%clk 0:01:56]} 17. h5 {[%clk 0:02:13]}  Rad8 {[%clk 0:01:47]} 18. Rxd8 {[%clk 0:01:54]}  Rxd8 {[%clk 0:01:46]} 19. hxg6 {[%clk 0:01:52]}  hxg6 {[%clk 0:01:46]} 20. Nfg5 {[%clk 0:01:46]}  Nd5 {[%clk 0:01:41]} 21. Qf2 {[%clk 0:01:26]}  c4 {[%clk 0:01:20]} 22. Qh2 {[%clk 0:01:14]}  c3 {[%clk 0:01:18]} 23. e6 {[%clk 0:00:58]}  cxb2+ {[%clk 0:01:17]} 24. Kb1 {[%clk 0:00:56]}  Qc4 {[%clk 0:00:05]} 25. exf7+ {[%clk 0:00:46]}  Kf8 {[%clk 0:00:05]} 26. Qh8+ {[%clk 0:00:36]}  Bxh8 {[%clk 0:00:06]} 27. Rxh8+ {[%clk 0:00:36]}  Kg7 {[%clk 0:00:02]} 28. Rh7+ {[%clk 0:00:37]} 1-0

[Event "November 21 Late 2023"]
[Site "https://www.chess.com"]
[Date "2023.11.21"]
[Round "7"]
[White "Jarmula, Lukasz"]
[Black "Vafin, Ayrat"]
[Result "1-0"]
[Board "35"]
[TimeControl "180+1"]
[WhiteFideId "1160664"]
[BlackFideId "4146530"]
[WhiteElo "2372"]
[BlackElo "2317"]
[WhiteTeam "POL"]
[BlackTeam "RUS"]
[WhiteClock "0:01:50"]
[BlackClock "0:00:14"]

1. c4 {[%clk 0:03:00]}  e6 {[%clk 0:02:59]} 2. Nc3 {[%clk 0:02:59]}  d5 {[%clk 0:02:59]} 3. d4 {[%clk 0:02:59]}  Be7 {[%clk 0:02:59]} 4. Nf3 {[%clk 0:02:58]}  Nf6 {[%clk 0:02:59]} 5. g3 {[%clk 0:02:59]}  O-O {[%clk 0:02:52]} 6. Bg2 {[%clk 0:02:59]}  c6 {[%clk 0:02:51]} 7. Qd3 {[%clk 0:02:58]}  Nbd7 {[%clk 0:02:48]} 8. O-O {[%clk 0:02:58]}  b6 {[%clk 0:02:48]} 9. b3 {[%clk 0:02:58]}  Ba6 {[%clk 0:02:43]} 10. e4 {[%clk 0:02:52]}  dxc4 {[%clk 0:02:36]} 11. bxc4 {[%clk 0:02:52]}  e5 {[%clk 0:02:28]} 12. Ne2 {[%clk 0:02:52]}  Nc5 {[%clk 0:02:18]} 13. Qc2 {[%clk 0:02:48]}  exd4 {[%clk 0:01:27]} 14. Nexd4 {[%clk 0:02:46]}  Qc8 {[%clk 0:01:23]} 15. e5 {[%clk 0:02:43]}  Nfd7 {[%clk 0:01:17]} 16. Ba3 {[%clk 0:02:36]}  Re8 {[%clk 0:01:14]} 17. Rfe1 {[%clk 0:02:30]}  Bf8 {[%clk 0:01:11]} 18. Ng5 {[%clk 0:02:30]}  g6 {[%clk 0:01:07]} 19. Bxc6 {[%clk 0:02:27]}  Ne6 {[%clk 0:01:00]} 20. Ngxe6 {[%clk 0:02:14]}  fxe6 {[%clk 0:00:48]} 21. Bxf8 {[%clk 0:02:10]}  Rxf8 {[%clk 0:00:49]} 22. Bxa8 {[%clk 0:02:07]}  Qxa8 {[%clk 0:00:49]} 23. Nxe6 {[%clk 0:02:03]}  Rc8 {[%clk 0:00:46]} 24. Qe4 {[%clk 0:02:02]}  Bb7 {[%clk 0:00:45]} 25. Qh4 {[%clk 0:01:59]}  Bh1 {[%clk 0:00:44]} 26. Nf4 {[%clk 0:01:57]}  Rxc4 {[%clk 0:00:41]} 27. Qh3 {[%clk 0:01:54]}  Qf3 {[%clk 0:00:22]} 28. Qe6+ {[%clk 0:01:51]}  Kg7 {[%clk 0:00:20]} 29. Qxc4 {[%clk 0:01:51]}  g5 {[%clk 0:00:18]} 30. Qd5 {[%clk 0:01:51]}  gxf4 {[%clk 0:00:17]} 31. Qxf3 {[%clk 0:01:51]}  Bxf3 {[%clk 0:00:17]} 32. gxf4 {[%clk 0:01:51]}  Nc5 {[%clk 0:00:14]} 33. e6 {[%clk 0:01:50]} 1-0

[Event "November 21 Late 2023"]
[Site "https://www.chess.com"]
[Date "2023.11.21"]
[Round "7"]
[White "Annaberdiyev, Meylis"]
[Black "Nikologorsky, Matfei"]
[Result "1-0"]
[Board "41"]
[TimeControl "180+1"]
[WhiteFideId "14000563"]
[BlackFideId "24102474"]
[WhiteElo "2405"]
[BlackElo "2153"]
[WhiteTeam "TKM"]
[BlackTeam "FID"]
[WhiteClock "0:00:42"]
[BlackClock "0:00:00"]

1. e4 {[%clk 0:03:00]}  c5 {[%clk 0:02:59]} 2. Nc3 {[%clk 0:03:00]}  e6 {[%clk 0:03:00]} 3. f4 {[%clk 0:02:59]}  d5 {[%clk 0:03:00]} 4. Nf3 {[%clk 0:03:00]}  dxe4 {[%clk 0:02:59]} 5. Nxe4 {[%clk 0:03:00]}  Nf6 {[%clk 0:02:57]} 6. Bd3 {[%clk 0:02:41]}  Be7 {[%clk 0:02:35]} 7. O-O {[%clk 0:02:35]}  Nc6 {[%clk 0:02:32]} 8. b3 {[%clk 0:02:34]}  O-O {[%clk 0:02:18]} 9. Bb2 {[%clk 0:02:30]}  b6 {[%clk 0:02:14]} 10. Neg5 {[%clk 0:02:04]}  h6 {[%clk 0:02:09]} 11. Ne5 {[%clk 0:02:04]}  Nd4 {[%clk 0:02:02]} 12. c3 {[%clk 0:01:45]}  Nf5 {[%clk 0:01:54]} 13. Qf3 {[%clk 0:01:44]}  Bd7 {[%clk 0:01:38]} 14. Qh3 {[%clk 0:01:12]}  Bd6 {[%clk 0:01:17]} 15. Ngf3 {[%clk 0:01:08]}  Nd5 {[%clk 0:01:12]} 16. g3 {[%clk 0:00:58]}  Rc8 {[%clk 0:00:58]} 17. Rae1 {[%clk 0:00:57]}  Nde7 {[%clk 0:00:43]} 18. g4 {[%clk 0:00:56]}  Bxe5 {[%clk 0:00:39]} 19. Nxe5 {[%clk 0:00:56]}  Nd6 {[%clk 0:00:37]} 20. g5 {[%clk 0:00:50]}  Nef5 {[%clk 0:00:35]} 21. c4 {[%clk 0:00:50]}  hxg5 {[%clk 0:00:23]} 22. Nxd7 {[%clk 0:00:46]}  Qxd7 {[%clk 0:00:22]} 23. fxg5 {[%clk 0:00:47]}  Qe7 {[%clk 0:00:14]} 24. Kh1 {[%clk 0:00:45]}  Qxg5 {[%clk 0:00:13]} 25. Rg1 {[%clk 0:00:45]}  Qh4 {[%clk 0:00:03]} 26. Rxg7+ {[%clk 0:00:44]}  Nxg7 {[%clk 0:00:03]} 27. Qxh4 {[%clk 0:00:44]}  Ndf5 {[%clk 0:00:00]} 28. Bxf5 {[%clk 0:00:42]} 1-0

[Event "November 21 Late 2023"]
[Site "https://www.chess.com"]
[Date "2023.11.21"]
[Round "7"]
[White "Poltorak, Sebastian"]
[Black "Zampronha, Wladimir Camilo"]
[Result "1/2-1/2"]
[Board "45"]
[TimeControl "180+1"]
[WhiteFideId "1199498"]
[BlackFideId "2103087"]
[WhiteElo "2250"]
[BlackElo "2055"]
[WhiteTeam "POL"]
[BlackTeam "BRA"]
[WhiteClock "0:00:14"]
[BlackClock "0:00:07"]

1. d4 {[%clk 0:03:00]}  Nf6 {[%clk 0:02:59]} 2. c4 {[%clk 0:03:01]}  e6 {[%clk 0:02:59]} 3. Nc3 {[%clk 0:03:02]}  Bb4 {[%clk 0:02:59]} 4. Nf3 {[%clk 0:03:02]}  b6 {[%clk 0:02:58]} 5. Qb3 {[%clk 0:03:02]}  a5 {[%clk 0:02:56]} 6. a3 {[%clk 0:03:01]}  Bxc3+ {[%clk 0:02:56]} 7. Qxc3 {[%clk 0:03:02]}  Bb7 {[%clk 0:02:57]} 8. g3 {[%clk 0:02:58]}  Ne4 {[%clk 0:02:56]} 9. Qe3 {[%clk 0:02:48]}  O-O {[%clk 0:02:56]} 10. Bg2 {[%clk 0:02:48]}  f5 {[%clk 0:02:56]} 11. O-O {[%clk 0:02:45]}  d6 {[%clk 0:02:56]} 12. Nd2 {[%clk 0:02:43]}  Nxd2 {[%clk 0:02:33]} 13. Bxd2 {[%clk 0:02:31]}  Bxg2 {[%clk 0:02:31]} 14. Qxe6+ {[%clk 0:02:31]}  Kh8 {[%clk 0:02:32]} 15. Kxg2 {[%clk 0:02:31]}  Re8 {[%clk 0:02:32]} 16. Qxf5 {[%clk 0:02:30]}  Rxe2 {[%clk 0:02:30]} 17. Bg5 {[%clk 0:02:29]}  Qg8 {[%clk 0:02:20]} 18. Rae1 {[%clk 0:02:25]}  Rxe1 {[%clk 0:02:19]} 19. Rxe1 {[%clk 0:02:24]}  Nc6 {[%clk 0:02:19]} 20. d5 {[%clk 0:01:51]}  Ne5 {[%clk 0:02:15]} 21. Qe4 {[%clk 0:01:49]}  Qf7 {[%clk 0:02:02]} 22. f4 {[%clk 0:01:45]}  Ng4 {[%clk 0:02:00]} 23. Qe6 {[%clk 0:01:40]}  Kg8 {[%clk 0:01:47]} 24. h3 {[%clk 0:01:38]}  Nf6 {[%clk 0:01:44]} 25. Bxf6 {[%clk 0:01:38]}  gxf6 {[%clk 0:01:43]} 26. g4 {[%clk 0:01:33]}  Rb8 {[%clk 0:01:38]} 27. a4 {[%clk 0:01:32]}  Rf8 {[%clk 0:01:33]} 28. Kg3 {[%clk 0:01:29]}  Kh8 {[%clk 0:01:33]} 29. Qxf7 {[%clk 0:01:28]}  Rxf7 {[%clk 0:01:34]} 30. Re8+ {[%clk 0:01:27]}  Kg7 {[%clk 0:01:34]} 31. f5 {[%clk 0:01:27]}  Rd7 {[%clk 0:01:33]} 32. h4 {[%clk 0:01:21]}  Kf7 {[%clk 0:01:33]} 33. Re3 {[%clk 0:01:19]}  h6 {[%clk 0:01:31]} 34. Kf4 {[%clk 0:01:18]}  Rd8 {[%clk 0:01:31]} 35. b3 {[%clk 0:01:14]}  Rh8 {[%clk 0:01:30]} 36. Re2 {[%clk 0:01:02]}  Rh7 {[%clk 0:01:30]} 37. b4 {[%clk 0:00:54]}  axb4 {[%clk 0:01:29]} 38. Rb2 {[%clk 0:00:55]}  Rh8 {[%clk 0:01:29]} 39. Rxb4 {[%clk 0:00:55]}  Ra8 {[%clk 0:01:28]} 40. g5 {[%clk 0:00:51]}  hxg5+ {[%clk 0:01:27]} 41. hxg5 {[%clk 0:00:51]}  fxg5+ {[%clk 0:01:28]} 42. Kxg5 {[%clk 0:00:52]}  Rg8+ {[%clk 0:01:27]} 43. Kf4 {[%clk 0:00:51]}  Kf6 {[%clk 0:01:26]} 44. a5 {[%clk 0:00:39]}  bxa5 {[%clk 0:01:25]} 45. Rb7 {[%clk 0:00:38]}  Rg5 {[%clk 0:01:25]} 46. Rxc7 {[%clk 0:00:39]}  Rxf5+ {[%clk 0:01:26]} 47. Ke4 {[%clk 0:00:39]}  Rh5 {[%clk 0:01:21]} 48. Rd7 {[%clk 0:00:24]}  Rh4+ {[%clk 0:01:20]} 49. Kd3 {[%clk 0:00:24]}  Ke5 {[%clk 0:01:21]} 50. Re7+ {[%clk 0:00:24]}  Kf5 {[%clk 0:01:20]} 51. Re6 {[%clk 0:00:23]}  Rh3+ {[%clk 0:01:15]} 52. Kc2 {[%clk 0:00:24]}  a4 {[%clk 0:01:09]} 53. Rxd6 {[%clk 0:00:23]}  Ke5 {[%clk 0:01:09]} 54. Ra6 {[%clk 0:00:22]}  Kd4 {[%clk 0:01:07]} 55. Rxa4 {[%clk 0:00:20]}  Rg3 {[%clk 0:01:04]} 56. Kb2 {[%clk 0:00:12]}  Rh3 {[%clk 0:01:04]} 57. Kc2 {[%clk 0:00:11]}  Rg3 {[%clk 0:01:04]} 58. Kd2 {[%clk 0:00:11]}  Rg2+ {[%clk 0:01:03]} 59. Ke1 {[%clk 0:00:11]}  Rh2 {[%clk 0:01:04]} 60. d6 {[%clk 0:00:11]}  Kc5 {[%clk 0:01:01]} 61. d7 {[%clk 0:00:11]}  Rh8 {[%clk 0:01:01]} 62. Kd2 {[%clk 0:00:09]}  Rd8 {[%clk 0:01:00]} 63. Kc3 {[%clk 0:00:09]}  Rxd7 {[%clk 0:00:59]} 64. Ra5+ {[%clk 0:00:10]}  Kb6 {[%clk 0:00:58]} 65. Rh5 {[%clk 0:00:10]}  Rg7 {[%clk 0:00:57]} 66. Rh6+ {[%clk 0:00:11]}  Kc5 {[%clk 0:00:56]} 67. Rh5+ {[%clk 0:00:11]}  Kc6 {[%clk 0:00:56]} 68. Rf5 {[%clk 0:00:11]}  Rg6 {[%clk 0:00:54]} 69. Kb4 {[%clk 0:00:11]}  Rh6 {[%clk 0:00:48]} 70. Ra5 {[%clk 0:00:10]}  Kb6 {[%clk 0:00:44]} 71. c5+ {[%clk 0:00:10]}  Kb7 {[%clk 0:00:45]} 72. Kb5 {[%clk 0:00:10]}  Rg6 {[%clk 0:00:31]} 73. Ra4 {[%clk 0:00:09]}  Rh6 {[%clk 0:00:30]} 74. Rg4 {[%clk 0:00:08]}  Rf6 {[%clk 0:00:27]} 75. Rg7+ {[%clk 0:00:08]}  Kc8 {[%clk 0:00:27]} 76. Re7 {[%clk 0:00:09]}  Rg6 {[%clk 0:00:26]} 77. Rf7 {[%clk 0:00:08]}  Rh6 {[%clk 0:00:26]} 78. Ra7 {[%clk 0:00:09]}  Kb8 {[%clk 0:00:26]} 79. Ra2 {[%clk 0:00:07]}  Kc7 {[%clk 0:00:24]} 80. Re2 {[%clk 0:00:07]}  Rg6 {[%clk 0:00:22]} 81. Re7+ {[%clk 0:00:08]}  Kc8 {[%clk 0:00:22]} 82. Rh7 {[%clk 0:00:08]}  Kb8 {[%clk 0:00:21]} 83. Rd7 {[%clk 0:00:08]}  Kc8 {[%clk 0:00:21]} 84. Rd5 {[%clk 0:00:08]}  Rh6 {[%clk 0:00:21]} 85. c6 {[%clk 0:00:07]}  Rh1 {[%clk 0:00:18]} 86. Kc5 {[%clk 0:00:06]}  Kc7 {[%clk 0:00:17]} 87. Rd7+ {[%clk 0:00:07]}  Kc8 {[%clk 0:00:17]} 88. Rd5 {[%clk 0:00:07]}  Kc7 {[%clk 0:00:17]} 89. Rd7+ {[%clk 0:00:08]}  Kc8 {[%clk 0:00:17]} 90. Rd2 {[%clk 0:00:05]}  Kc7 {[%clk 0:00:15]} 91. Rd4 {[%clk 0:00:04]}  Rh5+ {[%clk 0:00:13]} 92. Rd5 {[%clk 0:00:04]}  Rxd5+ {[%clk 0:00:13]} 93. Kxd5 {[%clk 0:00:05]}  Kc8 {[%clk 0:00:13]} 94. Kd4 {[%clk 0:00:05]}  Kc7 {[%clk 0:00:13]} 95. Kc5 {[%clk 0:00:06]}  Kc8 {[%clk 0:00:12]} 96. Kb5 {[%clk 0:00:07]}  Kc7 {[%clk 0:00:11]} 97. Kc5 {[%clk 0:00:07]}  Kc8 {[%clk 0:00:12]} 98. Kb6 {[%clk 0:00:08]}  Kb8 {[%clk 0:00:12]} 99. Ka6 {[%clk 0:00:09]}  Kc7 {[%clk 0:00:11]} 100. Kb5 {[%clk 0:00:10]}  Kc8 {[%clk 0:00:11]} 101. Kc4 {[%clk 0:00:10]}  Kc7 {[%clk 0:00:10]} 102. Kd5 {[%clk 0:00:11]}  Kc8 {[%clk 0:00:07]} 103. Kd6 {[%clk 0:00:12]}  Kd8 {[%clk 0:00:07]} 104. c7+ {[%clk 0:00:13]}  Kc8 {[%clk 0:00:07]} 105. Kc6 {[%clk 0:00:14]} 1/2-1/2

[Event "November 21 Late 2023"]
[Site "https://www.chess.com"]
[Date "2023.11.21"]
[Round "7"]
[White "Hambleton, Aman"]
[Black "Toropov, Pavel"]
[Result "1-0"]
[Board "49"]
[TimeControl "180+1"]
[WhiteFideId "2606577"]
[BlackFideId "24129178"]
[WhiteElo "2511"]
[BlackElo "2182"]
[WhiteTeam "CAN"]
[BlackTeam "RUS"]
[WhiteClock "0:00:03"]
[BlackClock "0:00:00"]

1. d4 {[%clk 0:03:00]}  d5 {[%clk 0:02:59]} 2. c4 {[%clk 0:02:57]}  c6 {[%clk 0:02:59]} 3. Nf3 {[%clk 0:02:55]}  Nf6 {[%clk 0:02:59]} 4. Nbd2 {[%clk 0:02:56]}  Bf5 {[%clk 0:02:58]} 5. Nh4 {[%clk 0:02:53]}  Be4 {[%clk 0:02:57]} 6. Qb3 {[%clk 0:02:51]}  Qb6 {[%clk 0:02:53]} 7. Qh3 {[%clk 0:02:50]}  Nbd7 {[%clk 0:02:33]} 8. c5 {[%clk 0:02:34]}  Qc7 {[%clk 0:02:24]} 9. f3 {[%clk 0:02:32]}  Bc2 {[%clk 0:02:21]} 10. e3 {[%clk 0:02:08]}  e6 {[%clk 0:02:17]} 11. g4 {[%clk 0:02:04]}  g5 {[%clk 0:02:06]} 12. Ng2 {[%clk 0:02:04]}  h5 {[%clk 0:02:06]} 13. Qg3 {[%clk 0:01:50]}  Qxg3+ {[%clk 0:02:00]} 14. hxg3 {[%clk 0:01:49]}  Bg7 {[%clk 0:02:01]} 15. gxh5 {[%clk 0:01:48]}  Rxh5 {[%clk 0:02:01]} 16. Rxh5 {[%clk 0:01:47]}  Nxh5 {[%clk 0:02:02]} 17. g4 {[%clk 0:01:34]}  Nhf6 {[%clk 0:01:49]} 18. Nb3 {[%clk 0:01:16]}  b6 {[%clk 0:01:42]} 19. Ba6 {[%clk 0:00:58]}  bxc5 {[%clk 0:01:34]} 20. Bb7 {[%clk 0:00:57]}  Rb8 {[%clk 0:01:33]} 21. Bxc6 {[%clk 0:00:57]}  c4 {[%clk 0:01:26]} 22. Nc5 {[%clk 0:00:53]}  Ke7 {[%clk 0:01:25]} 23. Ba4 {[%clk 0:00:26]}  Bxa4 {[%clk 0:01:03]} 24. Nxa4 {[%clk 0:00:27]}  Ne8 {[%clk 0:01:01]} 25. b3 {[%clk 0:00:10]}  cxb3 {[%clk 0:00:50]} 26. Ba3+ {[%clk 0:00:10]}  Nd6 {[%clk 0:00:44]} 27. axb3 {[%clk 0:00:11]}  Rxb3 {[%clk 0:00:43]} 28. Nc5 {[%clk 0:00:11]}  Rc3 {[%clk 0:00:06]} 29. Nxd7 {[%clk 0:00:06]}  Kxd7 {[%clk 0:00:06]} 30. Bxd6 {[%clk 0:00:07]}  Kxd6 {[%clk 0:00:07]} 31. Ra6+ {[%clk 0:00:04]}  Rc6 {[%clk 0:00:07]} 32. Rxa7 {[%clk 0:00:05]}  Rc7 {[%clk 0:00:07]} 33. Ra6+ {[%clk 0:00:05]}  Rc6 {[%clk 0:00:07]} 34. Ra7 {[%clk 0:00:05]}  Rc7 {[%clk 0:00:07]} 35. Ra8 {[%clk 0:00:06]}  Ke7 {[%clk 0:00:07]} 36. Kd2 {[%clk 0:00:03]}  e5 {[%clk 0:00:06]} 37. dxe5 {[%clk 0:00:01]}  Bxe5 {[%clk 0:00:07]} 38. Ne1 {[%clk 0:00:01]}  Rb7 {[%clk 0:00:06]} 39. Nd3 {[%clk 0:00:01]}  Bf6 {[%clk 0:00:06]} 40. Ra6 {[%clk 0:00:01]}  Rc7 {[%clk 0:00:04]} 41. Ke2 {[%clk 0:00:02]}  Bc3 {[%clk 0:00:04]} 42. Nf2 {[%clk 0:00:02]}  Rb7 {[%clk 0:00:04]} 43. Rc6 {[%clk 0:00:01]}  Bf6 {[%clk 0:00:04]} 44. Nd3 {[%clk 0:00:02]}  Ra7 {[%clk 0:00:04]} 45. Nb4 {[%clk 0:00:02]}  Rb7 {[%clk 0:00:04]} 46. Nxd5+ {[%clk 0:00:02]}  Kd7 {[%clk 0:00:00]} 47. Rxf6 {[%clk 0:00:03]} 1-0

[Event "November 21 Late 2023"]
[Site "https://www.chess.com"]
[Date "2023.11.21"]
[Round "7"]
[White "VitaliyChayka"]
[Black "De La Colina, Nicolas"]
[Result "1-0"]
[Board "55"]
[TimeControl "180+1"]
[BlackFideId "30946921"]
[WhiteElo "2445"]
[BlackElo "2088"]
[BlackTeam "USA"]
[WhiteClock "0:00:28"]
[BlackClock "0:00:00"]

1. d4 {[%clk 0:03:00]}  f5 {[%clk 0:02:58]} 2. h3 {[%clk 0:02:56]}  d5 {[%clk 0:02:58]} 3. Bf4 {[%clk 0:02:51]}  Nf6 {[%clk 0:02:53]} 4. e3 {[%clk 0:02:51]}  g6 {[%clk 0:02:34]} 5. c4 {[%clk 0:02:49]}  Bg7 {[%clk 0:02:31]} 6. Nc3 {[%clk 0:02:47]}  e6 {[%clk 0:02:25]} 7. Bd3 {[%clk 0:02:46]}  O-O {[%clk 0:02:23]} 8. Nf3 {[%clk 0:02:44]}  Ne4 {[%clk 0:02:18]} 9. Qc2 {[%clk 0:02:44]}  c6 {[%clk 0:02:06]} 10. O-O-O {[%clk 0:02:35]}  Nd7 {[%clk 0:01:53]} 11. g4 {[%clk 0:02:31]}  Ndf6 {[%clk 0:01:52]} 12. Ne5 {[%clk 0:02:28]}  Bd7 {[%clk 0:01:45]} 13. f3 {[%clk 0:02:20]}  Nxc3 {[%clk 0:01:43]} 14. Qxc3 {[%clk 0:02:21]}  Rc8 {[%clk 0:01:39]} 15. Kb1 {[%clk 0:02:16]}  c5 {[%clk 0:01:19]} 16. dxc5 {[%clk 0:02:14]}  Rxc5 {[%clk 0:01:18]} 17. Qa3 {[%clk 0:02:12]}  b6 {[%clk 0:01:01]} 18. Qxa7 {[%clk 0:01:58]}  Ra5 {[%clk 0:00:53]} 19. Qb7 {[%clk 0:01:55]}  Bc8 {[%clk 0:00:50]} 20. Qc6 {[%clk 0:01:51]}  Rc5 {[%clk 0:00:49]} 21. Qa4 {[%clk 0:01:50]}  Nd7 {[%clk 0:00:43]} 22. Nc6 {[%clk 0:01:36]}  Qe8 {[%clk 0:00:38]} 23. cxd5 {[%clk 0:01:33]}  Rxd5 {[%clk 0:00:32]} 24. Nb4 {[%clk 0:01:16]}  Ra5 {[%clk 0:00:28]} 25. Qc6 {[%clk 0:01:13]}  Nc5 {[%clk 0:00:21]} 26. Qxe8 {[%clk 0:01:11]}  Rxe8 {[%clk 0:00:22]} 27. Bc4 {[%clk 0:01:11]}  Kh8 {[%clk 0:00:16]} 28. Nc6 {[%clk 0:01:01]}  Ra8 {[%clk 0:00:16]} 29. Ne5 {[%clk 0:00:59]}  Bb7 {[%clk 0:00:14]} 30. Rhf1 {[%clk 0:00:47]}  Rac8 {[%clk 0:00:14]} 31. Nf7+ {[%clk 0:00:44]}  Kg8 {[%clk 0:00:13]} 32. Nd6 {[%clk 0:00:44]}  Na4 {[%clk 0:00:05]} 33. Bb3 {[%clk 0:00:38]}  Nxb2 {[%clk 0:00:04]} 34. Rd2 {[%clk 0:00:34]}  Red8 {[%clk 0:00:00]} 35. Bxe6+ {[%clk 0:00:28]} 1-0

[Event "November 21 Late 2023"]
[Site "https://www.chess.com"]
[Date "2023.11.21"]
[Round "7"]
[White "Ambartsumova, Karina"]
[Black "jactorres"]
[Result "1-0"]
[Board "56"]
[TimeControl "180+1"]
[WhiteFideId "4166299"]
[WhiteElo "2240"]
[BlackElo "2443"]
[WhiteTeam "RUS"]
[WhiteClock "0:01:46"]
[BlackClock "0:00:45"]

1. d4 {[%clk 0:03:00]}  Nf6 {[%clk 0:02:57]} 2. c4 {[%clk 0:03:01]}  e6 {[%clk 0:02:57]} 3. Nc3 {[%clk 0:03:01]}  d5 {[%clk 0:02:57]} 4. cxd5 {[%clk 0:03:00]}  exd5 {[%clk 0:02:57]} 5. Bg5 {[%clk 0:03:00]}  Be7 {[%clk 0:02:57]} 6. e3 {[%clk 0:03:00]}  O-O {[%clk 0:02:57]} 7. Bd3 {[%clk 0:03:00]}  c6 {[%clk 0:02:57]} 8. Nf3 {[%clk 0:02:56]}  Nbd7 {[%clk 0:02:57]} 9. Qc2 {[%clk 0:02:56]}  Re8 {[%clk 0:02:57]} 10. O-O {[%clk 0:02:56]}  Nf8 {[%clk 0:02:58]} 11. h3 {[%clk 0:02:55]}  g6 {[%clk 0:02:57]} 12. Ne5 {[%clk 0:02:47]}  Ne6 {[%clk 0:02:52]} 13. Bh6 {[%clk 0:02:36]}  Ng7 {[%clk 0:02:42]} 14. Bxg7 {[%clk 0:02:33]}  Kxg7 {[%clk 0:02:43]} 15. f4 {[%clk 0:02:34]}  c5 {[%clk 0:02:22]} 16. Qf2 {[%clk 0:02:30]}  cxd4 {[%clk 0:02:16]} 17. exd4 {[%clk 0:02:30]}  Bd6 {[%clk 0:01:50]} 18. Rae1 {[%clk 0:02:26]}  Qb6 {[%clk 0:01:36]} 19. g4 {[%clk 0:02:05]}  Ne4 {[%clk 0:01:15]} 20. Bxe4 {[%clk 0:01:49]}  dxe4 {[%clk 0:01:16]} 21. Rxe4 {[%clk 0:01:48]}  f5 {[%clk 0:00:45]} 22. Nc4 {[%clk 0:01:46]} 1-0

[Event "November 21 Late 2023"]
[Site "https://www.chess.com"]
[Date "2023.11.21"]
[Round "7"]
[White "Leschinsky, Gary"]
[Black "Erdogan, Anil Berk"]
[Result "0-1"]
[Board "57"]
[TimeControl "180+1"]
[WhiteFideId "30951321"]
[BlackFideId "6348173"]
[WhiteElo "2020"]
[BlackElo "2007"]
[WhiteTeam "USA"]
[BlackTeam "TUR"]
[WhiteClock "0:00:28"]
[BlackClock "0:00:16"]

1. d4 {[%clk 0:02:57]}  Nf6 {[%clk 0:03:00]} 2. c4 {[%clk 0:02:55]}  c5 {[%clk 0:03:00]} 3. d5 {[%clk 0:02:54]}  e6 {[%clk 0:03:01]} 4. Nc3 {[%clk 0:02:54]}  exd5 {[%clk 0:03:02]} 5. cxd5 {[%clk 0:02:55]}  d6 {[%clk 0:03:02]} 6. e4 {[%clk 0:02:55]}  g6 {[%clk 0:03:03]} 7. Nge2 {[%clk 0:02:55]}  Bg7 {[%clk 0:03:03]} 8. Ng3 {[%clk 0:02:55]}  O-O {[%clk 0:03:03]} 9. Be2 {[%clk 0:02:55]}  b6 {[%clk 0:03:03]} 10. O-O {[%clk 0:02:54]}  Ba6 {[%clk 0:03:04]} 11. a4 {[%clk 0:02:52]}  Bxe2 {[%clk 0:03:00]} 12. Qxe2 {[%clk 0:02:52]}  a6 {[%clk 0:03:01]} 13. Bf4 {[%clk 0:02:52]}  Re8 {[%clk 0:02:51]} 14. Qd2 {[%clk 0:02:50]}  Qc7 {[%clk 0:02:48]} 15. Rfe1 {[%clk 0:02:48]}  Nbd7 {[%clk 0:02:48]} 16. Nf1 {[%clk 0:02:43]}  Ne5 {[%clk 0:02:43]} 17. Ne3 {[%clk 0:02:38]}  Nh5 {[%clk 0:02:33]} 18. Bg5 {[%clk 0:02:36]}  h6 {[%clk 0:02:28]} 19. Bh4 {[%clk 0:02:34]}  g5 {[%clk 0:02:28]} 20. Bg3 {[%clk 0:02:33]}  Nxg3 {[%clk 0:02:27]} 21. fxg3 {[%clk 0:02:30]}  c4 {[%clk 0:02:25]} 22. Nf5 {[%clk 0:02:28]}  Ng4 {[%clk 0:02:17]} 23. h3 {[%clk 0:02:20]}  Qc5+ {[%clk 0:02:14]} 24. Kh1 {[%clk 0:02:20]}  Nf2+ {[%clk 0:02:10]} 25. Kh2 {[%clk 0:02:18]}  Nd3 {[%clk 0:02:10]} 26. Nxg7 {[%clk 0:02:15]}  Kxg7 {[%clk 0:01:54]} 27. Rf1 {[%clk 0:02:16]}  b5 {[%clk 0:01:39]} 28. axb5 {[%clk 0:02:15]}  axb5 {[%clk 0:01:40]} 29. Rxa8 {[%clk 0:02:11]}  Rxa8 {[%clk 0:01:41]} 30. h4 {[%clk 0:02:08]}  f6 {[%clk 0:01:38]} 31. Qe2 {[%clk 0:02:03]}  b4 {[%clk 0:01:26]} 32. Nd1 {[%clk 0:02:02]}  Ne5 {[%clk 0:00:46]} 33. Ne3 {[%clk 0:02:00]}  c3 {[%clk 0:00:42]} 34. Nf5+ {[%clk 0:01:59]}  Kg6 {[%clk 0:00:33]} 35. Ne7+ {[%clk 0:01:32]}  Kf7 {[%clk 0:00:32]} 36. Nf5 {[%clk 0:01:32]}  Kg6 {[%clk 0:00:28]} 37. h5+ {[%clk 0:01:10]}  Kh7 {[%clk 0:00:28]} 38. Ne3 {[%clk 0:01:05]}  Qxe3 {[%clk 0:00:28]} 39. Qb5 {[%clk 0:01:02]}  Rf8 {[%clk 0:00:27]} 40. Qb7+ {[%clk 0:00:58]}  Rf7 {[%clk 0:00:27]} 41. Qxb4 {[%clk 0:00:58]}  c2 {[%clk 0:00:26]} 42. Qxd6 {[%clk 0:00:45]}  c1=Q {[%clk 0:00:25]} 43. Rxc1 {[%clk 0:00:43]}  Qxc1 {[%clk 0:00:26]} 44. Qe6 {[%clk 0:00:42]}  Qd1 {[%clk 0:00:18]} 45. d6 {[%clk 0:00:34]}  Qxh5+ {[%clk 0:00:18]} 46. Kg1 {[%clk 0:00:34]}  Qd1+ {[%clk 0:00:18]} 47. Kh2 {[%clk 0:00:28]}  Ng4+ {[%clk 0:00:16]} 0-1